Workbook

Sheet Brown
A1: Schedule D | F1: 2007
A2: Nand & Anita Sarna | F2: SSN=133645126
A3: Account | B3: Fund | C3: Pur_Date | D3: Date_Sold | E3: Proceed | F3: Cost | G3: Gain_Loss
A4: BROWN | B4: LOW | C4: 2006-08-25 | D4: 2007-01-17 | E4: 2469.92 | F4: 1996.25 | G4: 473.67 | H4: ST | J4: -0.06
A5: BROWN | B5: CSCO | C5: 2004-05-05 | D5: 2007-01-18 | E5: 1350.41 | F5: 1072 | G5: 278.41 | H5: LT
A6: BROWN | B6: CSCO | C6: 2002-02-28 | D6: 2007-01-18 | E6: 1355.5 | F6: 752 | G6: 603.5 | H6: LT | I6: 2705.91 | J6: -0.07
A7: BROWN | B7: MSFT | C7: 2004-08-17 | D7: 2007-01-18 | E7: 1545 | F7: 1366 | G7: 179 | H7: LT | J7: -0.05
A8: BROWN | B8: WIT | C8: 2006-04-05 | D8: 2007-01-18 | E8: 867.47 | F8: 751.5 | G8: 115.97 | H8: ST | J8: -0.03
A9: BROWN | B9: MSFT | C9: 2002-08-01 | D9: 2007-01-26 | E9: 1546.45 | F9: 1161.5 | G9: 384.95 | H9: LT | I9: x
A10: BROWN | B10: FDC | C10: 2006-10-20 | D10: 2007-04-03 | E10: 1615.47 | F10: 1149.5 | G10: 465.97 | H10: ST | J10: -0.03
A11: BROWN | B11: APA | C11: 2007-01-29 | D11: 2007-04-11 | E11: 3641.94 | F11: 3523 | G11: 118.94 | H11: ST | I11: x
A12: BROWN | B12: GLW | C12: 2006-12-28 | D12: 2007-04-11 | E12: 1169.98 | F12: 945.5 | G12: 224.48 | H12: ST | I12: x
A13: BROWN | B13: AMZN | C13: 2006-02-16 | D13: 2007-04-23 | E13: 2219.96 | F13: 1919.5 | G13: 300.46 | H13: LT | J13: -0.02
A14: BROWN | B14: WMT | C14: 2005-10-11 | D14: 2007-04-23 | E14: 2448.96 | F14: 2261.5 | G14: 187.46 | H14: LT | J14: -0.02
A15: BROWN | B15: TXN | C15: 2006-12-22 | D15: 2007-04-24 | E15: 1750.47 | F15: 1444.5 | G15: 305.97 | H15: ST | J15: 0.03
A16: BROWN | B16: ASD | C16: 2007-01-10 | D16: 2007-05-01 | E16: 2757.45 | F16: 2305.5 | G16: 451.95 | H16: ST | I16: x
A17: BROWN | B17: AMAT | C17: 2004-07-20 | D17: 2007-05-15 | E17: 989.48 | F17: 864 | G17: 125.48 | H17: LT | J17: -0.02
A18: BROWN | B18: IP | C18: 2005-05-04 | D18: 2007-06-06 | E18: 1948.97 | F18: 1725 | G18: 223.97 | H18: LT | J18: -0.03
A19: BROWN | B19: INTC | C19: 2001-08-22 | D19: 2007-06-25 | E19: 1182.47 | F19: 1373.5 | G19: -191.03 | H19: LT
A20: BROWN | B20: INTC | C20: 2002-04-17 | D20: 2007-06-25 | E20: 593.75 | F20: 791.5 | G20: -197.75 | H20: LT | I20: 1776.22 | J20: -0.03
A21: BROWN | B21: LUV | C21: 2007-04-27 | D21: 2007-07-23 | E21: 406.75 | F21: 367.75 | G21: 39 | H21: ST
A22: BROWN | B22: LUV | C22: 2003-12-08 | D22: 2007-07-23 | E22: 1215.23 | F22: 1195.25 | G22: 19.98 | H22: LT | I22: 1621.98 | J22: x
A23: BROWN | B23: AMAT | C23: 2004-03-22 | D23: 2007-07-27 | E23: 1084 | F23: 1011.5 | G23: 72.5 | H23: LT
A24: BROWN | B24: AMAT | C24: 2003-12-08 | D24: 2007-07-27 | E24: 1079.04 | F24: 1140.5 | G24: -61.46 | H24: LT | I24: 2163.04 | J24: 0.06
A25: BROWN | B25: LUV | C25: 2007-04-27 | D25: 2007-08-13 | E25: 802.98 | F25: 725.5 | G25: 77.48 | H25: ST | J25: x
A26: BROWN | B26: BNI | C26: 2007-06-11 | D26: 2007-09-21 | E26: 4116.43 | F26: 4441.5 | G26: -325.07 | H26: ST | J26: -0.07
A27: BROWN | B27: USG | C27: 2007-05-03 | D27: 2007-09-24 | E27: 1849.48 | F27: 2450.5 | G27: -601.02 | H27: ST | J27: x
A28: BROWN | B28: MSFT | C28: 2005-05-04 | D28: 2007-10-26 | E28: 1768.02 | F28: 1267 | G28: 501.02 | H28: LT | J28: 0.04
A29: BROWN | B29: MSFT | C29: 2002-08-01 | D29: 2007-10-29 | E29: 1728 | F29: 1156.5 | G29: 571.5 | H29: LT | J29: -0.03
A30: BROWN | B30: WMT | C30: 2006-11-14 | D30: 2007-12-11 | E30: 2469.96 | F30: 2399.5 | G30: 70.46 | H30: LT | J30: -0.02
A32: SUM | E32: =SUM(E2:E30) -> 45973.54 | F32: =SUM(F2:F30) -> 41557.75 | G32: =SUM(G2:G30) -> 4415.79
E35: Sum ShortTerm | G35: 1347.34
E36: Sum LongTerm | G36: 3068.45
E37: Total | G37: 4415.79

Sheet WHS
A1: Schedule D | F1: 2007
A2: Nand & Anita Sarna | F2: SSN=133645126
A3: Account | B3: Fund | C3: Pur_Date | D3: Date_Sold | E3: Proceed | F3: Cost | G3: Gain_Loss
A4: WHS | B4: GE | C4: 2006-05-16 | D4: 2007-01-03 | E4: 1862.48 | F4: 1754.45 | G4: 108.03 | H4: ST | J4: x | K4: x
A5: WHS | B5: KO | C5: 2004-03-24 | D5: 2007-01-03 | E5: 2422.46 | F5: 2434.45 | G5: -11.99 | H5: LT | J5: x | K5: x
A6: WHS | B6: DD | C6: 2005-08-26 | D6: 2007-01-10 | E6: 2400.96 | F6: 2009.95 | G6: 391.01 | H6: LT | J6: x | K6: x
A7: WHS | B7: IBM | C7: 2005-05-04 | D7: 2007-01-12 | E7: 2959.65 | F7: 2321.75 | G7: 637.9 | H7: LT | J7: x | K7: x
A8: WHS | B8: BMY | C8: 2004-03-17 | D8: 2007-01-31 | E8: 1439.5 | F8: 1288.95 | G8: 150.55 | H8: LT | J8: x | K8: x
A9: WHS | B9: BMY | C9: 2004-03-25 | D9: 2007-02-01 | E9: 1430.5 | F9: 1202.95 | G9: 227.55 | H9: LT | J9: x | K9: x
A10: WHS | B10: NOK | C10: 2002-04-10 | D10: 2007-02-09 | E10: 1079.01 | F10: 969.95 | G10: 109.06 | H10: LT | J10: x | K10: x | L10: -2
A11: WHS | B11: HPQ | C11: 2000-12-13 | D11: 2007-02-21 | E11: 2068 | F11: 1960.95 | G11: 107.05 | H11: LT | J11: x | K11: 0.05
A12: WHS | B12: DOW | C12: 2006-06-15 | D12: 2007-02-27 | E12: 3283.24 | F12: 2874.2 | G12: 409.04 | H12: ST | J12: x | K12: 0.14
A13: WHS | B13: BP | C13: 2007-03-08 | D13: 2007-03-28 | E13: 4867.27 | F13: 4577.45 | G13: 289.82 | H13: ST | J13: x | K13: 0.08
A14: WHS | B14: DD | C14: 2005-10-03 | D14: 2007-03-28 | E14: 2458.04 | F14: 1981.45 | G14: 476.59 | H14: LT | J14: x | K14: 0.04
A15: WHS | B15: QQQQ | C15: 2000-10-13 | D15: 2007-04-19 | E15: 2231.01 | F15: 3980.75 | G15: -1749.74 | H15: LT | J15: x | K15: 0.03
A16: WHS | B16: NOK | C16: 2004-04-19 | D16: 2007-04-20 | E16: 1240.03 | F16: 755.95 | G16: 484.08 | H16: LT | J16: x | K16: 0.06
A17: WHS | B17: COP | C17: 2006-05-16 | D17: 2007-04-24 | E17: 3505.49 | F17: 3266.1 | G17: 239.39 | H17: ST | J17: x | K17: ???
A19: WHS | B19: A | C19: 2004-08-10 | D19: 2007-05-04 | E19: 1811.02 | F19: 1122.95 | G19: 688.07 | H19: LT
A20: WHS | B20: EMC | C20: 2001-09-25 | D20: 2007-05-04 | E20: 753.57 | F20: 665.95 | G20: 87.62 | H20: LT | I20: 1517.12 | K20: x
A21: WHS | B21: EMC | C21: 2002-03-08 | D21: 2007-05-04 | E21: 763.55 | F21: 583.95 | G21: 179.6 | H21: LT | I21: 1517.12 | K21: 0.05
A22: WHS | B22: A | C22: 2006-07-03 | D22: 2007-05-14 | E22: 1852.03 | F22: 1607.23 | G22: 244.8 | H22: ST | K22: 0.08
A23: WHS | B23: CSCO | C23: 2001-02-21 | D23: 2007-05-14 | E23: 1978.31 | F23: 1941.2 | G23: 37.11 | H23: LT | K23: 0.05
A24: WHS | B24: KO | C24: 2004-08-02 | D24: 2007-05-14 | E24: 2638.51 | F24: 2216.95 | G24: 421.56 | H24: LT | K24: 0.04
A25: WHS | B25: GE | C25: 2006-06-29 | D25: 2007-06-25 | E25: 1911.52 | F25: 1655.78 | G25: 255.75 | H25: ST | K25: x
A26: WHS | B26: HD | C26: 2000-08-16 | D26: 2007-07-23 | E26: 1965 | F26: 2555.75 | G26: -590.75 | H26: LT | K26: -0.06
A27: WHS | B27: IBM | C27: 2002-01-24 | D27: 2007-07-27 | E27: 5834.99 | F27: 5462.95 | G27: 372.04 | H27: LT | K27: 0.08
A28: WHS | B28: UPS | C28: 2006-07-25 | D28: 2007-09-07 | E28: 3677.5 | F28: 3473.95 | G28: 203.55 | H28: LT | K28: 0.04
A29: WHS | B29: GM | C29: 2005-10-04 | D29: 2007-09-27 | E29: 1843.53 | F29: 1554.45 | G29: 289.08 | H29: LT | K29: -0.17
A30: WHS | B30: NOK | C30: 2001-02-01 | D30: 2007-10-02 | E30: 1841.05 | F30: 1735.45 | G30: 105.6 | H30: LT | K30: 0.06
A31: WHS | B31: GM | C31: 2005-10-04 | D31: 2007-10-15 | E31: 2023.54 | F31: 1049.95 | G31: 973.59 | H31: LT | K31: 0.08
A32: WHS | B32: MRK | C32: 2001-10-03 | D32: 2007-10-24 | E32: 2807.53 | F32: 3344.95 | G32: -537.42 | H32: LT | J32: OK | K32: check
A33: WHS | B33: MSFT | C33: 2007-08-24 | D33: 2007-10-29 | E33: 2096.01 | F33: 1733.15 | G33: 362.86 | H33: ST | K33: 0.05
A34: WHS | B34: QQQQ | C34: 2000-10-26 | D34: 2007-10-29 | E34: 2702.45 | F34: 3762 | G34: -1059.55 | H34: LT | K34: 0.02
A35: WHS | B35: INTC | C35: 2004-11-01 | D35: 2007-11-08 | E35: 1296.13 | F35: 1128.95 | G35: 167.18 | H35: LT | K35: 0.09
A36: WHS | B36: MRK | C36: 2002-01-04 | D36: 2007-11-08 | E36: 2715.53 | F36: 2919.45 | G36: -203.92 | H36: LT | K36: 0.06
A37: WHS | B37: NOK | C37: 2001-02-01 | D37: 2007-11-08 | E37: 1951.54 | F37: 1725.5 | G37: 226.04 | H37: LT | J37: 685.17
A38: WHS | B38: JDSU | C38: 2001-06-13 | D38: 2007-12-17 | E38: 685.66 | F38: 3401.7 | G38: -2716.04 | H38: LT
A39: WHS | B39: TWX | C39: 2000-02-22 | D39: 2007-12-21 | E39: 206.23 | F39: 662 | G39: -455.77 | H39: LT | I39: 1037.73 | K39: x
A40: WHS | B40: TWX | C40: 2000-05-22 | D40: 2007-12-21 | E40: 831.5 | F40: 2612 | G40: -1780.5 | H40: LT | I40: 1037.73 | K40: x
A41: WHS | B41: MU | C41: 2002-02-25 | D41: 2007-12-26 | E41: 363.03 | F41: 1701.95 | G41: -1338.92 | H41: LT
B42: Realogy Corp | E42: 930 | I42: Manually added
B43: Avaya | E43: 140
B44: SGI | E44: -5.74 | F44: 398
A46: SUM | E46: =SUM(E4:E44) -> 78861.63 | F46: =SUM(F2:F41) -> 79997.46 | G46: =SUM(G2:G41) -> -2200.08
E49: Sum ShortTerm | G49: 1909.69
E50: Sum LongTerm | G50: -3585.23
E51: Total | G51: -1675.54
A56: WHS | B56: NOK | C56: 2004-05-03 | D56: 2007-04-24 | E56: 1240 | F56: 715.45 | G56: 524.55 | H56: LT | K56: 0.04 | L56: Not here on the Monthly report

Sheet AXP
A1: Schedule D | F1: 2007
A2: Nand & Anita Sarna | F2: SSN=133645126
A3: Account | B3: Fund | C3: Pur_Date | D3: Date_Sold | E3: Proceed | F3: Cost | G3: Gain_Loss
A4: AXP | B4: MOT | C4: 2000-12-07 | D4: 2007-03-22 | E4: 1311.75 | F4: 1313.7 | G4: -1.95 | H4: LT
A5: AXP | B5: MOT | C5: 2000-10-11 | D5: 2007-03-22 | E5: 413.27 | F5: 512.5 | G5: -99.23 | H5: LT | I5: 1725.02 | K5: 1725.02 | L5: =K5-I5 -> 0
A6: AXP | B6: MCD | C6: 2001-01-25 | D6: 2007-04-27 | E6: 4877.07 | F6: 3081.25 | G6: 1795.82 | H6: LT | I6: 4877.07 | K6: 4877.07 | L6: =K6-I6 -> 0
A7: AXP | B7: VTSS | C7: 2001-10-12 | D7: 2007-11-01 | E7: 59.29 | F7: 816.75 | G7: -757.46 | H7: LT | L7: =K7-I7 -> 0
A8: AXP | B8: VTSS | C8: 2001-08-24 | D8: 2007-11-01 | E8: 55.5 | F8: 773.5 | G8: -718 | H8: LT | I8: 114.79 | K8: 114.79 | L8: 0
A9: AXP | B9: GTW | C9: 2006-10-16 | D9: 2007-11-23 | E9: 332.5 | F9: 327.25 | G9: 5.25 | H9: LT | L9: 0
A10: AXP | B10: GTW | C10: 2004-01-16 | D10: 2007-11-23 | E10: 142.5 | F10: 339 | G10: -196.5 | H10: LT | I10: 475 | K10: 475 | L10: 0
A11: AXP | B11: LSI | C11: 2000-11-22 | D11: 2007-12-17 | E11: 58.4 | F11: 333.75 | G11: -275.35 | H11: LT | L11: 0
A12: AXP | B12: LSI | C12: 2000-09-19 | D12: 2007-12-17 | E12: 137.25 | F12: 854.69 | G12: -717.44 | H12: LT | I12: 195.65 | L12: -195.65
A13: AXP | B13: LSI | C13: 2000-08-15 | D13: 2007-12-17 | E13: 82.35 | F13: 535.31 | G13: -452.96 | H13: LT | I13: 278 | L13: -278
A14: AXP | B14: LSI | C14: 2000-07-31 | D14: 2007-12-17 | E14: 82.35 | F14: 513.75 | G14: -431.4 | H14: LT | I14: 360.35 | L14: -360.35
A15: AXP | B15: LSI | C15: 2000-07-26 | D15: 2007-12-17 | E15: 164.7 | F15: 1008.75 | G15: -844.05 | H15: LT | I15: 525.05 | K15: 525.05 | L15: 0
B16: AV | E16: 175 | F16: 165
A18: SUM | E18: =SUM(E2:E16) -> 7891.93 | F18: =SUM(F2:F15) -> 10410.2 | G18: =SUM(G2:G15) -> -2693.27
A20: check A
E21: Sum ShortTerm
E22: Sum LongTerm | G22: -2693.27
E23: Total | G23: -2693.27

Sheet FID
A1: Schedule D | F1: 2007
A2: Nand & Anita Sarna | F2: SSN=133645126
A3: Account | B3: Fund | C3: Pur_Date | D3: Date_Sold | E3: Proceed | F3: Cost | G3: Gain_Loss
A4: FID | B4: MCD | C4: 1999-12-23 | D4: 2007-01-17 | E4: 3360.94 | F4: 3024.33 | G4: 336.62 | H4: LT
B5: AV | D5: 2007-10-26 | E5: 70 | F5: 66 | J5: Manually added | K5: =16.5*4 -> 66
A7: SUM | E7: =SUM(E2:E4) -> 3360.94 | F7: =SUM(F2:F4) -> 3024.33 | G7: =SUM(G2:G4) -> 336.62
E10: Sum ShortTerm
E11: Sum LongTerm | G11: 336.62
E12: Total | G12: 336.62

Sheet Bank1
A1: Schedule D | F1: 2007
A2: Nand & Anita Sarna | B2: Fund | F2: SSN=133645126 | G2: Gain_Loss
A3: Account | B3: Fund | C3: Pur_Date | D3: Date_Sold | E3: Proceed | F3: Cost | G3: Gain_Loss | H3: ST
A5: SUM | E5: =SUM(E2:E3) -> 0 | F5: =SUM(F2:F3) -> 0 | G5: =SUM(G2:G3) -> 0
E8: Sum ShortTerm
E9: Sum LongTerm
E10: Total | G10: 0

Sheet sum

Sheet Office
A1: company | B1: Contactname | C1: phone | D1: Othernum | E1: Notes
A2: 3com | C2: 800-876-3266
A3: A1 Travels | B3: Pawan/Tina | C3: 281-596-8800
A4: Adonde Travels | B4: Nan | C4: 531-4006
A5: Amoco | B5: T&E | C5: 421-4791 | D5: 918-581-4791
A6: Amoco | B6: Payroll help | C6: 800-660-3015
A7: Amoco | B7: Ted Judice | C7: Beeper800-730-0615
A8: Amoco | B8: Helpdesk | C8: 281-560-4444 | D8: 800-660-3949
A9: Amoco | B9: Nand Sarna | C9: 281-560-8759 | E9: 1-800-93-amoco,0403xxx-xxxx86914082352704 1800-26-amoco, id: 0251636; speed #:0847 (1200 Baud) IP Address for ccmail: 149.179.200.21 tdad server- biji1 to change pw, dos , do setpass
A10: Amoco | B10: Brian Hampshire | C10: 281-212-7169 | D10: B&R 281-575-3497
A11: Amoco | B11: Lilia Rodrignez | C11: socon 222-5036 | E11: or 312-856-5056
A12: Amoco | B12: Ben Bryant | C12: 4311
A13: Amoco Aviation | C13: 403-777-9502 | E13: First left Canborek 6:300am Departs at 7:00am
A14: Amoco Canada | B14: Phil Morris | C14: 780-706-1587
A15: Amoco Canada | B15: Brian Paulssen | C15: 231-2078
A16: Amoco Canada | B16: Collin Gardner | C16: 234-4586 | D16: Doug Moffat: 233-1829; Stu Langier-233-1814 | E16: Nipi network support Floren Green : 233-1306
A17: Amoco Canada | B17: Layall Sutherland | C17: 403-233-6703
A18: Amoco Canada | B18: Bieny Pryor | C18: 233-5770
A19: Amoco Canada | B19: Eon Dosramos | C19: 233-1130 | D19: Cel: 540-8383
A20: Amoco Canada | B20: Maureen Evers-Daker | C20: 231-2057
A21: Amoco Credit Union | B21: Lori Crayon | C21: 281-870-8000
A22: Amoco Library | B22: Sandra Rivera | C22: 7412
A23: Amoco Nipisi | B23: Sherry @cnrl.com | C23: 403-849-7015 | D23: After Hours: 7025 | E23: IP address: 140.190.168.75 88 was old machine PW:niproot powar: powarftp PW: powarftp modem # 780-849-7003 Calvin in Calgary 403-517-6989 hgo, oilglut Mitswan : 149.190.168.81 Duane at mitswan 849-4470 Tom Renaud Home: 780-849-3725
A24: Amoco Pembina | B24: Lorraine Beamish | C24: 403-542-8159 | D24: Root PW morning
A25: Amoco Pine | B25: Ernie McMillan | C25: 780-778-7842 | D25: Arlin: 780-723-3604 | E25: IP: 149.190.181.75 Bruce: 780-723-3604/31
A26: Amoco Ricinus | B26: Geoff Ferry | C26: 403-722-7519 | D26: Cel: 403-845-8699 Modem: 722-3399 | E26: IP: 149.190.176.75 Computer Room: 7215 Pride server: id ripsams PW: flaggit6 Cel: 780-819-8699
A27: Amoco SSHU | B27: Ken Steadman | C27: 403-333-7716 | D27: Max Wood: email max_wood@gulf.cal | E27: max_wood(max_wood@gulf.cal)/unix,mime bert: bertf@home.com
A28: Amoco Tdad | B28: Lennox Quashie | C28: 8-433-4456 | D28: Rusell: 4507, Terrance: 4278, Lennox 4456 | E28: IP: 149.194.20.10 NT: root may21st1998 Password: autobase, autoserv autohost nt: master7 id super pw begood7 Switch Board: 868-630-8042 or 868-623-2862 Terrance Home{ 630-8078 Lennox Home: 868-667-7414 Cel:868-680-2810 kevin Thompson: 4165 staff complex: 630-8322/3123 dial out 7-6419-9-1-281-xxx or (Russell)71012- or 72290-9-1713 or Loran 7-9865-9-1- Cassia 4441/4442 ; Samaan 4420/4425 AC 4513/4481 Samaan B= 4421/4426 teak : 4410/4464 ; Immortell : 4475/4484 Poui: 4435/4531
A29: Amoco Travel Center | B29: Carlson Wagonit | C29: 877-343-2255 | D29: Membership #: 106678 | E29: After Hrs: 800-777-7999 Collect: 314-434-2107 Emergency service code: S/C620-BPA
A30: Amoco Wapiti | B30: Greg patzer | C30: 403-354-2226/221 | E30: IP: 149.190.179.75 was 28 PW: swaroot
A31: Amoco XFLD | B31: Larry Ortman | C31: 403-946-7115 | D31: Switch Board: 403-946-7115 | E31: IP address: 149.190.170.75 old was 43 PW: crfroot GGas: ggasftp PW: pcsams
A32: Astro Travel | B32: Neelu Sharma | C32: 988-1993
A33: Cable Express | B33: Linda | C33: 800-767-3282
A34: Calgary Law Firm | B34: Mike Green | C34: 403-265-7777
A35: Canadian Consulate General | B35: New York | C35: 212-596-1600 | E35: Calagry Office: 403-292-5724 Dallas: 214-922-9806 passport: 1-800-567-6868 or 604-586-2500
A36: Compaq | B36: Budy Price | C36: 881-5764 | D36: 800-652-6672 | E36: Sherry Ranson -Acct Mgr : 708-443-0744 reg num: 371-284-982
A37: Compurize | B37: Salin Tuma | C37: 957-1000
A38: CompUSA | C38: 589-0215
A39: Computer Expo | B39: Gorden/Hero/wazi | C39: 588-1800 | D39: 281-496-2424 | E39: 531-0990
A40: Coopers | B40: Rick Keneddy | C40: 614-393-8267 | E40: Mike Stone: 614-393-8354
A41: Coopers | B41: Pat Rafferty | C41: 713-859-7948
A42: Dataview | B42: Mathew Wendt | C42: 407-240-0363 | E42: Apen MCcutchen : 407-240-0363
A43: Dell | C43: 800-274-1140 | D43: 800-822-8969 | E43: 800-967-6765 Service Tag for NT server m/c : C0GN1 POUI Machine BZV3F Express Service code: 201-490-35 For CASG NT Service tag FCXRT , express service code : 257-978-81
A44: EDS | B44: Paul Square | C44: 5357 | E44: or Tom wilsom - 2414
A45: Fidelity | C45: 800-544-5555 | E45: acct x91043923; Other 404861460 collect call 801-534-1910
A46: Honeywell | B46: Dan Horne | C46: 713-972-3980,1,2 | D46: Ed: 713-972-3963 Home: 281-879-7976
A47: HP | C47: 303-635-1000
A48: Indx Software | B48: Blair Sullivan | C48: 936-321-2125 | D48: cel 713-398-3033
A49: Joe Mayers Toyota | B49: Christopher | C49: 890-8700
A50: Jones Towncar | B50: Jones | C50: 832-428-3727 | D50: home; 713-466-1805
A51: Kellog | B51: Nand Puri | C51: 960-4122
A52: Kenisix
A53: KLM | C53: 800-374-7747
A54: Lexus Connect. | B54: Scott | C54: 713-849-3789 | D54: mobile 281-536-7444
A55: Merril Lynch | B55: Erik Solis | C55: 281-493-4224 | E55: acct 12c-24
A56: Microsoft | B56: Ross Muery | C56: 281-986-4372 | E56: Fox Serial #: fpd215141 Activation Key:tylvbts1 Ms access: 206-635-7050 SDK 206-635-3329 c: 206-635-7007 Foxbase 800-227-4679
A57: Parijat Controlware | B57: Rakesh Verma | C57: 713-935-0900 | E57: Visual Basic stuff
A58: PCanywhere | B58: +- | C58: 516-736-0500
A59: PCC/SCO | B59: Toni | C59: 1-800-222-0550 | D59: SCO Katie Rooney : 408-439-4157 | E59: SCO Craig Redford (amoco Acct Mgr) : 510-659-1269 800-971-8054 UK office:9-011-44-113-251-2000 (switchboard) ... 2222 (support) 2223 (Fax) email ukvision@sco.com; allang@sco..com mikebr@sco.com Mike Brice (Manager) Patrick 908-287-2100 ext 926 Toni ext 915
A60: Pc-Connections | B60: Cable | C60: 800-800-1111
A61: Pentex Computers | B61: Justin Williams | C61: 713-988-1688
A62: Platinum Con | B62: Jody Harris | C62: 403-221-1209 | E62: C: 680-6016, H: 274-9561
A63: Price Water House | B63: Kathy, Tammy | C63: 403-974-5300 | E63: 403-974-5304 Cathylene
A64: Professional Tinting | B64: Frnor | C64: 894-TINT | E64: Car Tiniting
A65: RenTec | B65: John Smith | C65: 579-1343
A66: Rockwell | B66: Thomas Burke | C66: 216-646-7727 | D66: Customer service: 440-646-7700 | E66: Serial Number: 1431000373; 440-646-7721 (Larry Armstong) Marketing: 414-321-1575
A67: Software Spectrum | B67: Rick Cojan | C67: 1-888-560-3247 | D67: David (Orfis ?) 366-2430 Moved to Dallas | E67: Located in Amoco Chicago
A68: Spectrum Computers | B68: Scott | C68: 713-782-5500
A69: Standard Automation | B69: Mike Sullivan | C69: 281-334-3293 | D69: knowak@stdauto.comk lmoore@stdauto.com | E69: Sales: Norm Clauson , Kenny Nowak
A70: Sunsoft | B70: support Line | C70: 800-786-7638 | E70: Bulletin Board : login AMOCO, paswd 1370* 310-348-8638 (2400) 310-348-8641 (9600) Phone : 310-348-6219 Acct # 185868 new 61593
A71: Tech Education | C71: 800-662-4282 | E71: Window NT
A72: Thomos Cook | C72: 552-0036
A73: Trimble Nevigation | B73: Tech. Support | C73: 800-827-8000 e. 7929
A74: UNIFY | B74: Hotline | C74: 1-916-928-6433
A75: WaterHouse | B75: Waterhouse | C75: 800-967-8888 | D75: Houston: 713-626-5074 or 800-934-4456 | E75: 4323027419
A76: Westside Lexus | B76: Joey | C76: 281-558-3030 | D76: Service: 281-584-2280
A77: Wonderware | B77: Chit Thompsick | C77: 949-727-3200 | D77: 1-800-966-3371 | E77: Customer # 151 For Driver: Rashesh Modi

Sheet WData (hidden)
A1: =NOW() -> 2011-10-07T03:06:02.460
A5: =NOW() -> 2011-10-07T03:06:02.460
A6: 06:00:00

Sheet Commands
A2: Create Schede D
A4: Create Report for the year | D4: 2007
A6: DB file | D6: C:\nksapps\pm_V4\home.mdb
B13: For this example to work, you must have reference to ADO object.
B14: Do it by going to tool/reference | E14: You must stop script to do it
